[Event "Titled Tuesday Blitz June 6 Early 2023"]
[White "Grunberg, Mihai-Lucian"]
[Black "Chernobay, Artem"]
[WhiteFideId "1204149"]
[BlackFideId "4167406"]
[WhiteElo "2363"]
[BlackElo "2474"]
[Result "1-0"]
[Round "3"]
[TimeControl "180+2"]
[Date "2023.06.06"]
[WhiteClock "0:00:29"]
[BlackClock "0:00:03"]
[Board "84"]

1. Nf3 {[%clk 0:03:00]}  Nf6 {[%clk 0:02:59]} 2. g3 {[%clk 0:02:56]}  g6 {[%clk 0:02:59]} 3. Bg2 {[%clk 0:02:56]}  Bg7 {[%clk 0:02:59]} 4. O-O {[%clk 0:02:57]}  O-O {[%clk 0:03:00]} 5. c4 {[%clk 0:02:58]}  d6 {[%clk 0:03:00]} 6. d4 {[%clk 0:02:58]}  c6 {[%clk 0:03:01]} 7. Nc3 {[%clk 0:02:59]}  Bf5 {[%clk 0:03:01]} 8. b3 {[%clk 0:02:59]}  Ne4 {[%clk 0:03:01]} 9. Bb2 {[%clk 0:03:00]}  Nxc3 {[%clk 0:03:01]} 10. Bxc3 {[%clk 0:03:00]}  Be4 {[%clk 0:03:02]} 11. e3 {[%clk 0:03:00]}  d5 {[%clk 0:02:41]} 12. Bh3 {[%clk 0:02:58]}  e6 {[%clk 0:02:25]} 13. Qe2 {[%clk 0:02:54]}  h5 {[%clk 0:02:13]} 14. Nd2 {[%clk 0:02:51]}  Bf5 {[%clk 0:02:12]} 15. Bg2 {[%clk 0:02:40]}  a5 {[%clk 0:01:43]} 16. h3 {[%clk 0:02:39]}  Qg5 {[%clk 0:01:23]} 17. Kh2 {[%clk 0:02:29]}  Nd7 {[%clk 0:01:15]} 18. f3 {[%clk 0:02:17]}  e5 {[%clk 0:00:43]} 19. dxe5 {[%clk 0:02:15]}  Qe7 {[%clk 0:00:25]} 20. f4 {[%clk 0:02:06]}  dxc4 {[%clk 0:00:23]} 21. Nxc4 {[%clk 0:02:05]}  f6 {[%clk 0:00:23]} 22. e4 {[%clk 0:01:53]}  Be6 {[%clk 0:00:22]} 23. f5 {[%clk 0:01:50]}  gxf5 {[%clk 0:00:07]} 24. exf5 {[%clk 0:01:48]}  Bd5 {[%clk 0:00:06]} 25. e6 {[%clk 0:01:42]}  h4 {[%clk 0:00:06]} 26. gxh4 {[%clk 0:01:37]}  Bxc4 {[%clk 0:00:05]} 27. Qxc4 {[%clk 0:01:35]}  Ne5 {[%clk 0:00:04]} 28. Bxe5 {[%clk 0:01:29]}  fxe5 {[%clk 0:00:05]} 29. Qg4 {[%clk 0:01:22]}  Rf6 {[%clk 0:00:05]} 30. Rg1 {[%clk 0:01:19]}  Raf8 {[%clk 0:00:05]} 31. Be4 {[%clk 0:01:18]}  Kh8 {[%clk 0:00:05]} 32. Rg2 {[%clk 0:01:14]}  Rh6 {[%clk 0:00:06]} 33. Rag1 {[%clk 0:01:13]}  Bf6 {[%clk 0:00:06]} 34. h5 {[%clk 0:01:09]}  Qh7 {[%clk 0:00:07]} 35. Bf3 {[%clk 0:01:00]}  Qe7 {[%clk 0:00:06]} 36. Qe4 {[%clk 0:00:53]}  Rh7 {[%clk 0:00:05]} 37. Rg6 {[%clk 0:00:52]}  Bg7 {[%clk 0:00:05]} 38. Rxg7 {[%clk 0:00:43]}  Rxg7 {[%clk 0:00:04]} 39. Qxe5 {[%clk 0:00:43]}  Qf6 {[%clk 0:00:02]} 40. Qxf6 {[%clk 0:00:41]}  Rxf6 {[%clk 0:00:03]} 41. Rxg7 {[%clk 0:00:41]}  Kxg7 {[%clk 0:00:04]} 42. e7 {[%clk 0:00:41]}  Kf7 {[%clk 0:00:05]} 43. Be4 {[%clk 0:00:36]}  Kxe7 {[%clk 0:00:05]} 44. Kg3 {[%clk 0:00:37]}  Rd6 {[%clk 0:00:04]} 45. Kf4 {[%clk 0:00:36]}  Kf6 {[%clk 0:00:05]} 46. h6 {[%clk 0:00:35]}  Rd7 {[%clk 0:00:05]} 47. Kg4 {[%clk 0:00:32]}  Rd4 {[%clk 0:00:06]} 48. Kf4 {[%clk 0:00:31]}  Rd8 {[%clk 0:00:06]} 49. Kg4 {[%clk 0:00:32]}  Rg8+ {[%clk 0:00:06]} 50. Kh5 {[%clk 0:00:31]}  Rg5+ {[%clk 0:00:06]} 51. Kh4 {[%clk 0:00:32]}  Rg8 {[%clk 0:00:06]} 52. Kh5 {[%clk 0:00:31]}  Rg3 {[%clk 0:00:06]} 53. h4 {[%clk 0:00:30]}  Re3 {[%clk 0:00:06]} 54. h7 {[%clk 0:00:30]}  Kg7 {[%clk 0:00:03]} 55. f6+ {[%clk 0:00:30]}  Kh8 {[%clk 0:00:03]} 56. f7 {[%clk 0:00:29]} 1-0


[Site "https://www.chess.com"]

[Event "Titled Tuesday Blitz June 6 Early 2023"]
[White "Rodriguez, Santiago"]
[Black "Gubajdullin, Alexei"]
[WhiteFideId "3000591"]
[BlackFideId "4141202"]
[WhiteElo "2249"]
[BlackElo "2279"]
[Result "0-1"]
[Round "3"]
[TimeControl "180+2"]
[Date "2023.06.06"]
[WhiteClock "0:01:06"]
[BlackClock "0:01:12"]
[Board "85"]

1. d4 {[%clk 0:03:00]}  Nf6 {[%clk 0:02:59]} 2. Bg5 {[%clk 0:02:58]}  e6 {[%clk 0:02:57]} 3. e4 {[%clk 0:02:58]}  h6 {[%clk 0:02:57]} 4. Bxf6 {[%clk 0:02:58]}  Qxf6 {[%clk 0:02:57]} 5. c3 {[%clk 0:02:58]}  d6 {[%clk 0:02:57]} 6. Bd3 {[%clk 0:02:58]}  Nc6 {[%clk 0:02:57]} 7. Ne2 {[%clk 0:02:58]}  Bd7 {[%clk 0:02:56]} 8. O-O {[%clk 0:02:55]}  g5 {[%clk 0:02:54]} 9. f4 {[%clk 0:02:53]}  gxf4 {[%clk 0:02:53]} 10. Nxf4 {[%clk 0:02:46]}  Qg5 {[%clk 0:02:51]} 11. b4 {[%clk 0:02:36]}  O-O-O {[%clk 0:02:48]} 12. b5 {[%clk 0:02:36]}  Ne7 {[%clk 0:02:45]} 13. Nh5 {[%clk 0:02:26]}  f5 {[%clk 0:02:40]} 14. exf5 {[%clk 0:02:21]}  Nxf5 {[%clk 0:02:38]} 15. Bxf5 {[%clk 0:02:20]}  exf5 {[%clk 0:02:36]} 16. a4 {[%clk 0:02:20]}  d5 {[%clk 0:02:24]} 17. Qf3 {[%clk 0:02:10]}  Bd6 {[%clk 0:02:22]} 18. Na3 {[%clk 0:01:58]}  f4 {[%clk 0:02:19]} 19. Nxf4 {[%clk 0:01:48]}  Rdf8 {[%clk 0:02:18]} 20. g3 {[%clk 0:01:44]}  Rxf4 {[%clk 0:02:16]} 21. Qxf4 {[%clk 0:01:38]}  Bxf4 {[%clk 0:02:15]} 22. Rxf4 {[%clk 0:01:39]}  h5 {[%clk 0:02:06]} 23. Raf1 {[%clk 0:01:37]}  Bh3 {[%clk 0:01:53]} 24. Re1 {[%clk 0:01:28]}  h4 {[%clk 0:01:52]} 25. Re5 {[%clk 0:01:28]}  Qg6 {[%clk 0:01:49]} 26. Kf2 {[%clk 0:01:22]}  hxg3+ {[%clk 0:01:46]} 27. hxg3 {[%clk 0:01:22]}  Qd3 {[%clk 0:01:43]} 28. Re3 {[%clk 0:01:21]}  Qd2+ {[%clk 0:01:40]} 29. Re2 {[%clk 0:01:19]}  Qxc3 {[%clk 0:01:40]} 30. Nc2 {[%clk 0:01:20]}  Bg4 {[%clk 0:01:17]} 31. Rxg4 {[%clk 0:01:12]}  Rh2+ {[%clk 0:01:16]} 32. Kf1 {[%clk 0:01:06]}  Qf3+ {[%clk 0:01:12]} 0-1


[Site "https://www.chess.com"]

[Event "Titled Tuesday Blitz June 6 Early 2023"]
[White "Hristodoulou, Panagiotis"]
[Black "Perez, Maximiliano"]
[WhiteFideId "4214340"]
[BlackFideId "117234"]
[WhiteElo "2272"]
[BlackElo "2334"]
[Result "1-0"]
[Round "3"]
[TimeControl "180+2"]
[Date "2023.06.06"]
[WhiteClock "0:00:09"]
[BlackClock "0:00:04"]
[Board "89"]

1. e4 {[%clk 0:02:57]}  c5 {[%clk 0:02:59]} 2. Nf3 {[%clk 0:02:53]}  Nc6 {[%clk 0:03:00]} 3. d4 {[%clk 0:02:51]}  cxd4 {[%clk 0:03:00]} 4. Nxd4 {[%clk 0:02:52]}  e5 {[%clk 0:03:01]} 5. Nb5 {[%clk 0:02:51]}  d6 {[%clk 0:03:01]} 6. c4 {[%clk 0:02:49]}  g6 {[%clk 0:03:01]} 7. Bd3 {[%clk 0:02:45]}  Nf6 {[%clk 0:02:59]} 8. O-O {[%clk 0:02:44]}  Bg7 {[%clk 0:02:55]} 9. Bc2 {[%clk 0:02:44]}  Bf8 {[%clk 0:02:49]} 10. Bg5 {[%clk 0:02:38]}  a6 {[%clk 0:02:48]} 11. N5c3 {[%clk 0:02:37]}  h6 {[%clk 0:02:46]} 12. Be3 {[%clk 0:02:33]}  Bg7 {[%clk 0:02:44]} 13. Nd5 {[%clk 0:02:33]}  O-O {[%clk 0:02:38]} 14. Nxf6+ {[%clk 0:02:32]}  Qxf6 {[%clk 0:02:38]} 15. Nc3 {[%clk 0:02:32]}  Be6 {[%clk 0:02:36]} 16. b3 {[%clk 0:02:21]}  Nd4 {[%clk 0:02:28]} 17. Rc1 {[%clk 0:02:19]}  Qd8 {[%clk 0:02:24]} 18. Bd3 {[%clk 0:02:15]}  Qa5 {[%clk 0:02:22]} 19. Qd2 {[%clk 0:01:54]}  Kh7 {[%clk 0:02:21]} 20. Ne2 {[%clk 0:01:45]}  Qxd2 {[%clk 0:02:19]} 21. Bxd2 {[%clk 0:01:46]}  Nxe2+ {[%clk 0:02:09]} 22. Bxe2 {[%clk 0:01:47]}  f5 {[%clk 0:02:08]} 23. Bb4 {[%clk 0:01:41]}  Rfd8 {[%clk 0:02:07]} 24. Rfd1 {[%clk 0:01:39]}  Bf8 {[%clk 0:02:04]} 25. Bf3 {[%clk 0:01:23]}  Rab8 {[%clk 0:02:04]} 26. exf5 {[%clk 0:01:14]}  gxf5 {[%clk 0:02:05]} 27. Bd5 {[%clk 0:01:15]}  Bc8 {[%clk 0:01:43]} 28. a4 {[%clk 0:01:14]}  b6 {[%clk 0:01:38]} 29. Rd3 {[%clk 0:01:12]}  a5 {[%clk 0:01:37]} 30. Ba3 {[%clk 0:01:10]}  e4 {[%clk 0:01:35]} 31. Rdd1 {[%clk 0:00:57]}  Bg7 {[%clk 0:01:34]} 32. Rc2 {[%clk 0:00:52]}  Be5 {[%clk 0:01:28]} 33. Re2 {[%clk 0:00:51]}  Kg6 {[%clk 0:01:22]} 34. f3 {[%clk 0:00:50]}  exf3 {[%clk 0:01:22]} 35. Bxf3 {[%clk 0:00:49]}  Be6 {[%clk 0:01:19]} 36. Red2 {[%clk 0:00:42]}  Rd7 {[%clk 0:01:14]} 37. Bc6 {[%clk 0:00:40]}  Rc7 {[%clk 0:00:56]} 38. Bb5 {[%clk 0:00:26]}  Kf6 {[%clk 0:00:48]} 39. Bxd6 {[%clk 0:00:24]}  Bxd6 {[%clk 0:00:49]} 40. Rxd6 {[%clk 0:00:24]}  Ke5 {[%clk 0:00:50]} 41. R6d2 {[%clk 0:00:18]}  Kf6 {[%clk 0:00:44]} 42. Re1 {[%clk 0:00:18]}  Re7 {[%clk 0:00:37]} 43. Rd6 {[%clk 0:00:18]}  Kf7 {[%clk 0:00:37]} 44. Bc6 {[%clk 0:00:16]}  Bc8 {[%clk 0:00:19]} 45. Bd5+ {[%clk 0:00:16]}  Kf8 {[%clk 0:00:19]} 46. Rf6+ {[%clk 0:00:14]}  Kg7 {[%clk 0:00:19]} 47. Rxe7+ {[%clk 0:00:14]}  Kxf6 {[%clk 0:00:20]} 48. Re8 {[%clk 0:00:14]}  f4 {[%clk 0:00:18]} 49. Kf2 {[%clk 0:00:14]}  h5 {[%clk 0:00:17]} 50. h3 {[%clk 0:00:13]}  h4 {[%clk 0:00:17]} 51. Ke1 {[%clk 0:00:06]}  f3 {[%clk 0:00:14]} 52. gxf3 {[%clk 0:00:05]}  Kg7 {[%clk 0:00:13]} 53. Kf2 {[%clk 0:00:05]}  Kf6 {[%clk 0:00:13]} 54. f4 {[%clk 0:00:06]}  Kf5 {[%clk 0:00:10]} 55. Ke3 {[%clk 0:00:06]}  Kf6 {[%clk 0:00:09]} 56. Kd4 {[%clk 0:00:06]}  Kf5 {[%clk 0:00:05]} 57. Ke3 {[%clk 0:00:06]}  Kf6 {[%clk 0:00:05]} 58. Rh8 {[%clk 0:00:06]}  Kg6 {[%clk 0:00:04]} 59. Rd8 {[%clk 0:00:07]}  Kf6 {[%clk 0:00:03]} 60. Bf3 {[%clk 0:00:05]}  Ke7 {[%clk 0:00:04]} 61. Rh8 {[%clk 0:00:05]}  Kd6 {[%clk 0:00:03]} 62. Bg4 {[%clk 0:00:05]}  Bxg4 {[%clk 0:00:02]} 63. Rxb8 {[%clk 0:00:06]}  Bxh3 {[%clk 0:00:03]} 64. Rxb6+ {[%clk 0:00:06]}  Ke7 {[%clk 0:00:02]} 65. Rh6 {[%clk 0:00:06]}  Bg4 {[%clk 0:00:01]} 66. Rxh4 {[%clk 0:00:07]}  Bd1 {[%clk 0:00:02]} 67. Kd4 {[%clk 0:00:07]}  Bxb3 {[%clk 0:00:01]} 68. Rh5 {[%clk 0:00:07]}  Bxa4 {[%clk 0:00:02]} 69. Rxa5 {[%clk 0:00:08]}  Bc6 {[%clk 0:00:02]} 70. Ke5 {[%clk 0:00:08]}  Bf3 {[%clk 0:00:02]} 71. Ra7+ {[%clk 0:00:09]}  Kf8 {[%clk 0:00:03]} 72. c5 {[%clk 0:00:10]}  Ke8 {[%clk 0:00:03]} 73. f5 {[%clk 0:00:10]}  Kd8 {[%clk 0:00:04]} 74. f6 {[%clk 0:00:11]}  Bh5 {[%clk 0:00:04]} 75. Kd6 {[%clk 0:00:11]}  Ke8 {[%clk 0:00:04]} 76. c6 {[%clk 0:00:12]}  Bg4 {[%clk 0:00:04]} 77. f7+ {[%clk 0:00:10]}  Kf8 {[%clk 0:00:04]} 78. c7 {[%clk 0:00:10]}  Kg7 {[%clk 0:00:04]} 79. Ke7 {[%clk 0:00:09]} 1-0


[Site "https://www.chess.com"]

[Event "Titled Tuesday Blitz June 6 Early 2023"]
[White "Sielecki, Christof"]
[Black "Miszler, Levente"]
[WhiteFideId "4620437"]
[BlackFideId "763276"]
[WhiteElo "2443"]
[BlackElo "2176"]
[Result "1-0"]
[Round "3"]
[TimeControl "180+2"]
[Date "2023.06.06"]
[WhiteClock "0:01:48"]
[BlackClock "0:01:29"]
[Board "94"]

1. e4 {[%clk 0:03:00]}  c6 {[%clk 0:02:59]} 2. d4 {[%clk 0:03:00]}  d5 {[%clk 0:02:59]} 3. exd5 {[%clk 0:03:01]}  cxd5 {[%clk 0:02:59]} 4. Bd3 {[%clk 0:03:02]}  Nc6 {[%clk 0:02:59]} 5. c3 {[%clk 0:03:02]}  Nf6 {[%clk 0:02:58]} 6. h3 {[%clk 0:03:01]}  e6 {[%clk 0:02:56]} 7. Nf3 {[%clk 0:02:59]}  Qc7 {[%clk 0:02:54]} 8. O-O {[%clk 0:02:57]}  Be7 {[%clk 0:02:50]} 9. Qe2 {[%clk 0:02:55]}  Bd7 {[%clk 0:02:50]} 10. Ne5 {[%clk 0:02:52]}  O-O {[%clk 0:02:49]} 11. Bf4 {[%clk 0:02:51]}  Bd6 {[%clk 0:02:46]} 12. Nd2 {[%clk 0:02:50]}  Rac8 {[%clk 0:02:05]} 13. Rae1 {[%clk 0:02:49]}  a6 {[%clk 0:02:02]} 14. Bg5 {[%clk 0:02:38]}  Ne8 {[%clk 0:01:57]} 15. Qh5 {[%clk 0:02:28]}  g6 {[%clk 0:01:55]} 16. Qe2 {[%clk 0:02:20]}  f6 {[%clk 0:01:50]} 17. Nxd7 {[%clk 0:02:20]}  Qxd7 {[%clk 0:01:50]} 18. Bh6 {[%clk 0:02:20]}  e5 {[%clk 0:01:40]} 19. Bxf8 {[%clk 0:02:18]}  Bxf8 {[%clk 0:01:40]} 20. dxe5 {[%clk 0:02:11]}  fxe5 {[%clk 0:01:41]} 21. Qg4 {[%clk 0:02:01]}  Qf7 {[%clk 0:01:36]} 22. Qxc8 {[%clk 0:01:59]}  Nd6 {[%clk 0:01:35]} 23. Qg4 {[%clk 0:01:58]}  e4 {[%clk 0:01:35]} 24. Bc2 {[%clk 0:01:58]}  Ne5 {[%clk 0:01:35]} 25. Qe2 {[%clk 0:01:54]}  Bh6 {[%clk 0:01:30]} 26. Nxe4 {[%clk 0:01:47]}  dxe4 {[%clk 0:01:29]} 27. Bxe4 {[%clk 0:01:48]} 1-0


[Site "https://www.chess.com"]

[Event "Titled Tuesday Blitz June 6 Early 2023"]
[White "Rangel, Daniel"]
[Black "Kvaloy, Aksel Bu"]
[WhiteFideId "2124475"]
[BlackFideId "1528815"]
[WhiteElo "2231"]
[BlackElo "2318"]
[Result "0-1"]
[Round "3"]
[TimeControl "180+2"]
[Date "2023.06.06"]
[WhiteClock "0:00:02"]
[BlackClock "0:00:10"]
[Board "95"]

1. c4 {[%clk 0:03:00]}  e5 {[%clk 0:02:59]} 2. Nc3 {[%clk 0:02:59]}  Nf6 {[%clk 0:02:59]} 3. e4 {[%clk 0:02:59]}  Bc5 {[%clk 0:02:57]} 4. d3 {[%clk 0:02:55]}  d6 {[%clk 0:02:56]} 5. Be2 {[%clk 0:02:55]}  Nc6 {[%clk 0:02:54]} 6. Nf3 {[%clk 0:02:54]}  Bg4 {[%clk 0:02:54]} 7. O-O {[%clk 0:02:54]}  Bxf3 {[%clk 0:02:53]} 8. Bxf3 {[%clk 0:02:53]}  a6 {[%clk 0:02:50]} 9. Be3 {[%clk 0:02:52]}  Nd4 {[%clk 0:02:51]} 10. g3 {[%clk 0:02:50]}  h5 {[%clk 0:02:47]} 11. h4 {[%clk 0:02:46]}  g6 {[%clk 0:02:36]} 12. Bg2 {[%clk 0:02:43]}  Ng4 {[%clk 0:02:35]} 13. Bg5 {[%clk 0:02:28]}  f6 {[%clk 0:02:33]} 14. Bd2 {[%clk 0:02:26]}  g5 {[%clk 0:02:32]} 15. hxg5 {[%clk 0:02:24]}  fxg5 {[%clk 0:02:33]} 16. Nd5 {[%clk 0:02:21]}  c6 {[%clk 0:02:31]} 17. Ne3 {[%clk 0:02:20]}  Qd7 {[%clk 0:02:28]} 18. b4 {[%clk 0:02:16]}  Ba7 {[%clk 0:02:27]} 19. a4 {[%clk 0:02:07]}  O-O-O {[%clk 0:02:22]} 20. b5 {[%clk 0:02:06]}  Nxe3 {[%clk 0:02:16]} 21. Bxe3 {[%clk 0:02:03]}  h4 {[%clk 0:02:15]} 22. bxa6 {[%clk 0:01:57]}  hxg3 {[%clk 0:01:56]} 23. axb7+ {[%clk 0:01:58]}  Kxb7 {[%clk 0:01:56]} 24. fxg3 {[%clk 0:01:48]}  Qh7 {[%clk 0:01:51]} 25. Rf2 {[%clk 0:01:15]}  Qh2+ {[%clk 0:01:46]} 26. Kf1 {[%clk 0:01:15]}  Qxg3 {[%clk 0:01:42]} 27. Rf7+ {[%clk 0:01:11]}  Ka8 {[%clk 0:01:38]} 28. Bf2 {[%clk 0:01:11]}  Qh2 {[%clk 0:01:34]} 29. Qg4 {[%clk 0:00:49]}  Rdf8 {[%clk 0:01:23]} 30. Qd7 {[%clk 0:00:19]}  Rxf7 {[%clk 0:01:18]} 31. Qxf7 {[%clk 0:00:20]}  Rb8 {[%clk 0:00:56]} 32. Qd7 {[%clk 0:00:16]}  Rf8 {[%clk 0:00:44]} 33. Ra2 {[%clk 0:00:10]}  Qf4 {[%clk 0:00:17]} 34. Kg1 {[%clk 0:00:05]}  g4 {[%clk 0:00:16]} 35. Rb2 {[%clk 0:00:05]}  Ne2+ {[%clk 0:00:12]} 36. Rxe2 {[%clk 0:00:03]}  Bxf2+ {[%clk 0:00:12]} 37. Kf1 {[%clk 0:00:01]}  Bd4+ {[%clk 0:00:10]} 38. Ke1 {[%clk 0:00:02]}  Qc1# {[%clk 0:00:10]} 0-1


[Site "https://www.chess.com"]

[Event "Titled Tuesday Blitz June 6 Early 2023"]
[White "Aloma Vidal, Robert"]
[Black "Shapiro, Viktor"]
[WhiteFideId "2260409"]
[BlackFideId "4175700"]
[WhiteElo "2435"]
[BlackElo "2212"]
[Result "1/2-1/2"]
[Round "3"]
[TimeControl "180+2"]
[Date "2023.06.06"]
[WhiteClock "0:00:11"]
[BlackClock "0:00:37"]
[Board "96"]

1. e4 {[%clk 0:03:00]}  Nf6 {[%clk 0:03:00]} 2. e5 {[%clk 0:03:00]}  Nd5 {[%clk 0:03:00]} 3. c4 {[%clk 0:03:00]}  Nb6 {[%clk 0:03:00]} 4. d4 {[%clk 0:03:01]}  d6 {[%clk 0:03:01]} 5. f4 {[%clk 0:03:01]}  dxe5 {[%clk 0:03:01]} 6. fxe5 {[%clk 0:03:01]}  c5 {[%clk 0:03:02]} 7. d5 {[%clk 0:03:01]}  g6 {[%clk 0:03:02]} 8. Nc3 {[%clk 0:02:54]}  Bg7 {[%clk 0:03:02]} 9. Bf4 {[%clk 0:02:54]}  O-O {[%clk 0:03:02]} 10. Be2 {[%clk 0:02:49]}  e6 {[%clk 0:03:02]} 11. Nf3 {[%clk 0:02:43]}  exd5 {[%clk 0:03:01]} 12. cxd5 {[%clk 0:02:43]}  Bg4 {[%clk 0:03:01]} 13. O-O {[%clk 0:02:40]}  N8d7 {[%clk 0:03:01]} 14. Nd2 {[%clk 0:02:16]}  Bxe2 {[%clk 0:02:54]} 15. Qxe2 {[%clk 0:02:17]}  Nxe5 {[%clk 0:02:44]} 16. Bxe5 {[%clk 0:02:16]}  Re8 {[%clk 0:02:44]} 17. Qf3 {[%clk 0:02:09]}  Bxe5 {[%clk 0:02:42]} 18. Qxf7+ {[%clk 0:02:09]}  Kh8 {[%clk 0:02:42]} 19. Qxb7 {[%clk 0:02:07]}  Bd4+ {[%clk 0:02:30]} 20. Kh1 {[%clk 0:02:06]}  Bxc3 {[%clk 0:02:28]} 21. bxc3 {[%clk 0:02:06]}  Qxd5 {[%clk 0:02:28]} 22. Rf7 {[%clk 0:02:00]}  Qxb7 {[%clk 0:02:24]} 23. Rxb7 {[%clk 0:02:00]}  Re2 {[%clk 0:02:15]} 24. Nb3 {[%clk 0:01:58]}  Na4 {[%clk 0:02:13]} 25. c4 {[%clk 0:01:52]}  Rae8 {[%clk 0:02:03]} 26. h3 {[%clk 0:01:51]}  a6 {[%clk 0:01:47]} 27. Ra7 {[%clk 0:01:40]}  R8e6 {[%clk 0:01:31]} 28. Rd1 {[%clk 0:01:37]}  Re1+ {[%clk 0:01:29]} 29. Rxe1 {[%clk 0:01:37]}  Rxe1+ {[%clk 0:01:29]} 30. Kh2 {[%clk 0:01:38]}  Re6 {[%clk 0:01:29]} 31. Kg3 {[%clk 0:01:31]}  Rf6 {[%clk 0:01:28]} 32. Kg4 {[%clk 0:01:28]}  h6 {[%clk 0:01:28]} 33. h4 {[%clk 0:01:26]}  Kg8 {[%clk 0:01:27]} 34. Rc7 {[%clk 0:01:22]}  Rf2 {[%clk 0:01:20]} 35. g3 {[%clk 0:01:21]}  Rxa2 {[%clk 0:01:18]} 36. Rc6 {[%clk 0:01:18]}  Kg7 {[%clk 0:01:16]} 37. Rxa6 {[%clk 0:01:18]}  Nc3 {[%clk 0:01:10]} 38. Nxc5 {[%clk 0:01:15]}  Rxa6 {[%clk 0:01:05]} 39. Nxa6 {[%clk 0:01:15]}  Kf6 {[%clk 0:01:06]} 40. Kf4 {[%clk 0:01:12]}  g5+ {[%clk 0:01:03]} 41. hxg5+ {[%clk 0:01:11]}  hxg5+ {[%clk 0:01:03]} 42. Kg4 {[%clk 0:01:07]}  Ne4 {[%clk 0:01:03]} 43. Nb4 {[%clk 0:01:01]}  Ke5 {[%clk 0:01:03]} 44. Nc2 {[%clk 0:00:54]}  Kf6 {[%clk 0:00:49]} 45. Ne1 {[%clk 0:00:47]}  Ke6 {[%clk 0:00:41]} 46. Nf3 {[%clk 0:00:41]}  Kf6 {[%clk 0:00:41]} 47. Ne1 {[%clk 0:00:34]}  Ke5 {[%clk 0:00:40]} 48. Kf3 {[%clk 0:00:27]}  Nxg3 {[%clk 0:00:36]} 49. Nd3+ {[%clk 0:00:18]}  Kd4 {[%clk 0:00:37]} 50. c5 {[%clk 0:00:17]}  Nf5 {[%clk 0:00:36]} 51. Kg4 {[%clk 0:00:13]}  Ne7 {[%clk 0:00:36]} 52. Kxg5 {[%clk 0:00:11]}  Kxd3 {[%clk 0:00:37]} 53. c6 {[%clk 0:00:11]}  Nxc6 {[%clk 0:00:37]} 1/2-1/2


[Site "https://www.chess.com"]

[Event "Titled Tuesday Blitz June 6 Early 2023"]
[White "Bayo Milagro, Alvaro"]
[Black "Redzisz, Michal"]
[WhiteFideId "22275240"]
[BlackFideId "21816107"]
[WhiteElo "2270"]
[BlackElo "2175"]
[Result "0-1"]
[Round "3"]
[TimeControl "180+2"]
[Date "2023.06.06"]
[WhiteClock "0:01:39"]
[BlackClock "0:01:14"]
[Board "98"]

1. Nf3 {[%clk 0:03:00]}  Nf6 {[%clk 0:02:57]} 2. c4 {[%clk 0:03:00]}  e6 {[%clk 0:02:46]} 3. g3 {[%clk 0:02:58]}  b6 {[%clk 0:02:46]} 4. Bg2 {[%clk 0:02:57]}  Bb7 {[%clk 0:02:47]} 5. d4 {[%clk 0:02:58]}  Bb4+ {[%clk 0:02:43]} 6. Bd2 {[%clk 0:02:57]}  c5 {[%clk 0:02:43]} 7. O-O {[%clk 0:02:57]}  O-O {[%clk 0:02:42]} 8. d5 {[%clk 0:02:39]}  Bxd2 {[%clk 0:02:28]} 9. Qxd2 {[%clk 0:02:37]}  exd5 {[%clk 0:02:28]} 10. Nh4 {[%clk 0:02:36]}  Ne4 {[%clk 0:02:17]} 11. Qc2 {[%clk 0:02:36]}  Nc6 {[%clk 0:02:01]} 12. cxd5 {[%clk 0:02:34]}  Nb4 {[%clk 0:01:49]} 13. Qxe4 {[%clk 0:02:33]}  Bxd5 {[%clk 0:01:50]} 14. Qg4 {[%clk 0:02:20]}  Bxg2 {[%clk 0:01:43]} 15. Kxg2 {[%clk 0:02:21]}  Nc2 {[%clk 0:01:40]} 16. Nc3 {[%clk 0:02:22]}  Nxa1 {[%clk 0:01:39]} 17. Rxa1 {[%clk 0:02:22]}  d5 {[%clk 0:01:31]} 18. Nf5 {[%clk 0:02:21]}  g6 {[%clk 0:01:32]} 19. e4 {[%clk 0:02:04]}  dxe4 {[%clk 0:01:22]} 20. Rd1 {[%clk 0:02:01]}  Qf6 {[%clk 0:01:18]} 21. Nd5 {[%clk 0:01:59]}  Qe5 {[%clk 0:01:15]} 22. Nde7+ {[%clk 0:01:39]}  Kh8 {[%clk 0:01:14]} 0-1


[Site "https://www.chess.com"]